fUSD/lending_fUSD_20260208
["ID","MTS","AMOUNT","RATE_DAILY","PERIOD"]
[404768927,1770520244705,-152.56,0.0003,2]
[404768928,1770520244715,-10732.73906839,0.00030462,2]
[404768929,1770520244726,-4657.83024449,0.00030638,2]
[404768930,1770520244736,-440.55799967,0.00031017,2]
[404768931,1770520244747,-182.34249586,0.00032006,8]
[404768932,1770520244756,-150.13,0.00032365,2]
[404768933,1770520244766,-150.0,0.00032365,2]
[404768934,1770520244775,-509.0,0.00032616,2]
[404768935,1770520244785,-1000.0,0.00033264,2]
[404768936,1770520244796,-765.18,0.000333,2]
[404768937,1770520244806,-11689.78,0.000333,14]
[404768938,1770520244815,-10732.73906839,0.00033835,2]
[404768939,1770520244825,-4657.83024449,0.00033967,2]
[404768940,1770520244834,-177.02396097,0.00034052,2]
[404768941,1770520244844,-51100.0,0.000343,2]
[404768942,1770520244853,-509.0,0.00034309,4]
[404768943,1770520244863,-5529.0,0.000347,3]
[404768944,1770520244873,-1090.30763793,0.00034898,20]
[404768945,1770520244882,-1131.75979119,0.00034898,20]
[404768946,1770520244891,-1021.89342296,0.00034898,20]
[404768947,1770520244901,-1142.93895513,0.00034898,20]
[404768948,1770520244910,-1039.46661293,0.00034898,20]
[404768949,1770520244919,-1115.44874442,0.00034898,20]
[404768950,1770520244929,-1101.45268367,0.00034898,20]
[404768951,1770520244939,-966.13695293,0.00034898,20]
[404768952,1770520244948,-150.0,0.00034904,2]
[404768953,1770520244957,-5529.0,0.000351,5]
[404768954,1770520244967,-162.402,0.00035286,2]
[404768955,1770520244977,-629.944,0.00035286,2]
[404768956,1770520244987,-3484.0,0.00035286,2]
[404768957,1770520244996,-1550.434,0.00035286,2]
[404768958,1770520245006,-1335.0,0.00035286,2]
[404768959,1770520245016,-150.505,0.00035286,2]
[404768960,1770520245026,-1280.184,0.00035286,2]
[404768961,1770520245036,-1213.662,0.00035286,2]
[404768962,1770520245048,-922.428,0.00035286,2]
[404768963,1770520245058,-3255.0,0.00035286,2]
[404768964,1770520245067,-2447.0,0.00035286,2]
[404768965,1770520245076,-412.0,0.00035286,2]
[404768966,1770520245085,-150.0,0.00035365,2]
[404768967,1770520245094,-150.0,0.00035365,2]
[404768968,1770520245103,-440.55799967,0.00035372,2]
[404768969,1770520245113,-1500.0,0.00035616,15]
[404768970,1770520245123,-1500.0,0.00035616,15]
[404768971,1770520245132,-2605.711302,0.00035616,15]
[404768972,1770520245141,-318.73126935,0.00035616,7]
[404768973,1770520245154,-2000.0,0.000359,2]
[404768974,1770520245163,-11689.78,0.000359,14]
[404768975,1770520245173,-509.0,0.00036001,6]
[404768976,1770520245182,-150.0,0.00036649,2]
[404768977,1770520245193,-1000.0,0.0003696,2]
[404768978,1770520245203,-400.11,0.000372,14]
[404768979,1770520245212,-10732.73906839,0.00037208,2]
[404768980,1770520245223,-4657.83024449,0.00037296,2]
[404768981,1770520245232,-509.0,0.00037693,8]
[404768982,1770520245241,-1920.737,0.00038088,50]
[404768983,1770520245251,-616.0,0.00038286,2]
[404768984,1770520245262,-3484.0,0.00038286,2]
[404768985,1770520245272,-1411.0,0.00038286,2]
[404768986,1770520245283,-1335.0,0.00038286,2]
[404768987,1770520245294,-1272.0,0.00038286,2]
[404768988,1770520245303,-1206.0,0.00038286,2]
[404768989,1770520245312,-917.0,0.00038286,2]
[404768990,1770520245321,-3255.0,0.00038286,2]
[404768991,1770520245330,-2447.0,0.00038286,2]
[404768992,1770520245339,-412.0,0.00038286,2]
[404768993,1770520245348,-150.0,0.00038482,2]
[404768994,1770520245357,-177.02396097,0.00039067,2]
[404768995,1770520245367,-175.15556915,0.00039091,30]
[404768996,1770520245377,-509.0,0.00039386,10]
[404768997,1770520245387,-765.18,0.000394,30]
[404768998,1770520245396,-11689.78,0.000394,14]
[404768999,1770520245405,-2000.0,0.000396,2]
[404769000,1770520245415,-1000.0,0.000396,2]
[404769001,1770520245424,-440.55799967,0.00039727,2]
[404769003,1770520245433,-300.0,0.00039765,2]
[404769004,1770520245442,-1078.62288825,0.00039765,2]
[404769005,1770520245451,-300.0,0.00039765,2]
[404769006,1770520245461,-852.9683247,0.00039765,2]
[404769007,1770520245470,-305.12354707,0.00039765,2]
[404769008,1770520245479,-300.0,0.00039765,2]
[404769009,1770520245488,-881.67763408,0.00039765,2]
[404769010,1770520245498,-300.0,0.00039765,2]
[404769012,1770520245507,-300.0,0.00039765,2]
[404769014,1770520245516,-300.0,0.00039765,2]
[404769015,1770520245525,-300.0,0.00039765,2]
[404769016,1770520245534,-306.30098188,0.00039765,2]
[404769017,1770520245544,-300.0,0.00039765,2]
[404769018,1770520245553,-300.0,0.00039765,2]
[404769019,1770520245563,-457.33043133,0.00039765,2]
[404769020,1770520245572,-300.0,0.00039765,2]
[404769021,1770520245581,-300.0,0.00039765,2]
[404769022,1770520245590,-300.0,0.00039765,2]
[404769023,1770520245599,-370.2222184,0.00039765,2]
[404769024,1770520245608,-300.0,0.00039765,2]
[404769025,1770520245652,-300.0,0.00039765,2]
[404769026,1770520245661,-300.0,0.00039765,2]
[404769027,1770520245670,-300.0,0.00039765,2]
[404769028,1770520245680,-300.0,0.00039765,2]
[404769029,1770520245689,-300.0,0.00039765,2]
[404769030,1770520245698,-516.96458608,0.00039765,2]
[404769031,1770520245707,-305.27812549,0.00039765,2]
[404769032,1770520245718,-300.0,0.00039765,2]
[404769033,1770520245727,-300.0,0.00039765,2]
[404769034,1770520245737,-300.0,0.00039765,2]
[404769035,1770520245745,-300.0,0.00039765,2]
[404769036,1770520245754,-300.0,0.00039765,2]
[404769037,1770520245763,-300.0,0.00039765,2]
[404769038,1770520245773,-572.03870209,0.00039765,2]
[404769039,1770520245782,-300.0,0.00039765,2]
[404769040,1770520245793,-300.0,0.00039765,2]
[404769041,1770520245802,-300.0,0.00039765,2]
[404769042,1770520245811,-1078.62288825,0.00039765,2]
[404769043,1770520245820,-300.0,0.00039765,2]
[404769044,1770520245830,-300.0,0.00039765,2]
[404769045,1770520245839,-852.9683247,0.00039765,2]
[404769046,1770520245850,-305.12354707,0.00039765,2]
[404769047,1770520245860,-300.0,0.00039765,2]
[404769048,1770520245870,-881.67763408,0.00039765,2]
[404769049,1770520245879,-300.0,0.00039765,2]
[404769050,1770520245890,-300.0,0.00039765,2]
[404769051,1770520245900,-300.0,0.00039765,2]
[404769052,1770520245909,-300.0,0.00039765,2]
[404769053,1770520245919,-306.30098188,0.00039765,2]
[404769054,1770520245930,-300.0,0.00039765,2]
[404769055,1770520245941,-300.0,0.00039765,2]
[404769056,1770520245951,-457.33043133,0.00039765,2]
[404769057,1770520245962,-300.0,0.00039765,2]
[404769058,1770520245973,-300.0,0.00039765,2]
[404769059,1770520245982,-300.0,0.00039765,2]
[404769060,1770520245994,-370.2222184,0.00039765,2]
[404769061,1770520246005,-300.0,0.00039765,2]
[404769062,1770520246015,-300.0,0.00039765,2]
[404769063,1770520246026,-300.0,0.00039765,2]
[404769064,1770520246037,-300.0,0.00039765,2]
[404769065,1770520246046,-300.0,0.00039765,2]
[404769066,1770520246055,-300.0,0.00039765,2]
[404769067,1770520246065,-516.96458608,0.00039765,2]
[404769068,1770520246074,-305.27812549,0.00039765,2]
[404769069,1770520246086,-300.0,0.00039765,2]
[404769070,1770520246096,-300.0,0.00039765,2]
[404769071,1770520246106,-769.54,0.00039999,30]
[404769072,1770520246118,-765.89,0.00039999,30]
[404769073,1770520246129,-659.81,0.00039999,30]
[404769074,1770520246139,-50000.0,0.0004,40]
[404769075,1770520246150,-50000.0,0.0004,30]
[404769076,1770520246161,-2466.0,0.0004,120]
[404769077,1770520246171,-354.33,0.0004,120]
[404769078,1770520246181,-654.01,0.0004,120]
[404769079,1770520246191,-250.0,0.0004,45]
[404769080,1770520246201,-151.0,0.0004,120]
[404769081,1770520246211,-153.0,0.0004,120]
[404769082,1770520246223,-177.6377625,0.0004,2]
[404769083,1770520246234,-250.97235786,0.0004,2]
[404769084,1770520246245,-160.0,0.0004,30]
[404769085,1770520246255,-300.0,0.0004,30]
[404769086,1770520246265,-160.0,0.0004,30]
[404769087,1770520246277,-152.0,0.00040042,3]
[404769088,1770520246287,-150.0,0.00040406,2]
[404769089,1770520246296,-250.0,0.000405,45]
[404769090,1770520246305,-10732.73906839,0.00040581,15]
[404769091,1770520246315,-4657.83024449,0.00040625,15]
[404769092,1770520246323,-1000.0,0.00040656,2]
[404769093,1770520246331,-151.0,0.000408,120]
[404769094,1770520246338,-153.0,0.000409,120]
[404769095,1770520246346,-612.42715191,0.00041,30]
[404769096,1770520246354,-400.11,0.00041,14]
[404769097,1770520246362,-718.0,0.00041021,7]
[404769098,1770520246370,-300.0,0.00041068,22]
[404769099,1770520246379,-509.0,0.00041078,12]
[404769100,1770520246389,-160.0,0.000412,30]
[404769101,1770520246399,-11689.78,0.000412,14]
[404769102,1770520246408,-616.0,0.00041286,2]
[404769103,1770520246419,-3484.0,0.00041286,2]
[404769104,1770520246431,-1411.0,0.00041286,2]
[404769105,1770520246440,-1272.0,0.00041286,2]
[404769106,1770520246449,-1206.0,0.00041286,2]
[404769107,1770520246458,-917.0,0.00041286,2]
[404769108,1770520246468,-3255.0,0.00041286,2]
[404769109,1770520246477,-2447.0,0.00041286,2]
[404769110,1770520246487,-412.0,0.00041286,2]
[404769111,1770520246497,-718.0,0.00041326,120]
[404769112,1770520246508,-200.0,0.000414,2]
[404769113,1770520246518,-200.0,0.000414,2]
[404769114,1770520246528,-200.0,0.000414,2]
[404769115,1770520246538,-200.0,0.000414,2]
[404769116,1770520246547,-200.0,0.000414,2]
[404769117,1770520246558,-200.0,0.000414,2]
[404769118,1770520246569,-200.0,0.000414,2]
[404769119,1770520246581,-200.0,0.000414,2]
[404769120,1770520246591,-200.0,0.000414,2]
[404769121,1770520246610,-200.0,0.000414,2]
[404769122,1770520246621,-200.0,0.000414,2]
[404769123,1770520246631,-200.0,0.000414,2]
[404769124,1770520246640,-200.0,0.000414,2]
[404769125,1770520246650,-200.0,0.000414,2]
[404769126,1770520246659,-200.0,0.000414,2]
[404769127,1770520246669,-200.0,0.000414,2]
[404769128,1770520246680,-200.0,0.000414,2]
[404769129,1770520246688,-200.0,0.000414,2]
[404769130,1770520246697,-200.0,0.000414,2]
[404769131,1770520246706,-200.0,0.000414,2]
[404769132,1770520246716,-200.0,0.000414,2]
[404769133,1770520246726,-200.0,0.000414,2]
[404769134,1770520246735,-200.0,0.000414,2]
[404769135,1770520246746,-200.0,0.000414,2]
[404769136,1770520246755,-200.0,0.000414,2]
[404769137,1770520246765,-200.0,0.000414,2]
[404769138,1770520246773,-200.0,0.000414,2]
[404769139,1770520246781,-200.0,0.000414,2]
[404769140,1770520246789,-200.0,0.000414,2]
[404769141,1770520246797,-200.0,0.000414,2]
[404769142,1770520246807,-200.0,0.000414,2]
[404769143,1770520246816,-200.0,0.000414,2]
[404769144,1770520246825,-200.0,0.000414,2]
[404769145,1770520246834,-200.0,0.000414,2]
[404769146,1770520246844,-200.0,0.000414,2]
[404769147,1770520246853,-200.0,0.000414,2]
[404769148,1770520246862,-208.0,0.000414,2]
[404769149,1770520246871,-171.06,0.00041424,120]
[404769150,1770520246880,-151.0,0.000415,120]
[404769151,1770520246889,-171.07293598,0.00041524,120]
[404769152,1770520246899,-1000.0,0.00041644,30]
[404769153,1770520246908,-765.18,0.000417,30]
[404769154,1770520246917,-153.0,0.000419,120]
[404769155,1770520246926,-1000.0,0.00041918,30]
[404769156,1770520246935,-213.75126474,0.00042,2]
[404769157,1770520246944,-10000.0,0.00042,120]
[404769158,1770520246953,-160.0,0.00042,120]
[404769159,1770520246963,-160.0,0.00042,120]
[404769160,1770520246972,-4711.0,0.0004205,2]
[404769161,1770520246981,-200.0,0.00042073,2]
[404769162,1770520246990,-300.081108,0.0004211,109]
[404769163,1770520247000,-500.0,0.00042191,120]
[404769164,1770520247009,-500.0,0.00042191,120]
[404769165,1770520247019,-500.0,0.00042191,120]
[404769166,1770520247028,-500.0,0.00042191,120]
[404769167,1770520247038,-202.55903106,0.00042191,120]
[404769168,1770520247047,-1000.0,0.00042192,30]
[404769169,1770520247056,-151.0,0.000423,120]
[404769170,1770520247065,-260.43751861,0.00042359,10]
[404769171,1770520247075,-150.0,0.00042426,120]
[404769172,1770520247084,-20000.0,0.00042466,120]
[404769173,1770520247094,-1000.0,0.00042466,30]
[404769174,1770520247105,-11689.78,0.000425,14]
[404769175,1770520247114,-500.0,0.00042537,60]
[404769176,1770520247123,-500.0,0.00042537,60]
[404769177,1770520247133,-500.0,0.00042537,60]
[404769178,1770520247142,-718.0,0.00042671,2]
[404769179,1770520247155,-1000.0,0.0004274,30]
[404769180,1770520247164,-718.0,0.00042745,2]
[404769181,1770520247173,-509.0,0.0004277,14]
[404769182,1770520247183,-153.0,0.000428,120]
[404769183,1770520247194,-50646.0,0.00042821,30]
[404769184,1770520247204,-1883.07240951,0.00042845,7]
[404769185,1770520247213,-400.11,0.000429,14]
[404769186,1770520247224,-200.0,0.00042965,2]
[404769187,1770520247233,-212.0,0.00043,30]
[404769188,1770520247242,-151.0,0.00043,120]
[404769189,1770520247251,-10000.0,0.00043,120]
[404769190,1770520247261,-168.0,0.00043,90]
[404769191,1770520247270,-24999.999999,0.00043,30]
[404769192,1770520247280,-1000.0,0.00043014,30]
[404769193,1770520247290,-500.0,0.0004317,30]
[404769194,1770520247299,-508.42955982,0.0004317,60]
[404769195,1770520247309,-286.8921852,0.00043182,120]
[404769196,1770520247318,-150.0,0.000432,120]
[404769197,1770520247327,-151.4213,0.0004322,7]
[404769198,1770520247337,-50646.0,0.00043263,30]
[404769199,1770520247346,-1000.0,0.00043288,30]
[404769200,1770520247356,-2000.0,0.000433,2]
[404769201,1770520247366,-1000.0,0.000433,2]
[404769202,1770520247375,-200.0,0.00043373,3]
[404769203,1770520247384,-192.0,0.00043443,120]
[404769204,1770520247395,-718.0,0.00043459,2]
[404769205,1770520247404,-4708.0,0.00043535,7]
[404769206,1770520247414,-1000.0,0.00043562,30]
[404769207,1770520247422,-765.18,0.000436,30]
[404769208,1770520247431,-500.0,0.00043633,60]
[404769209,1770520247440,-500.0,0.00043633,60]
[404769210,1770520247450,-500.0,0.00043633,60]
[404769211,1770520247459,-769.54,0.00043699,30]
[404769212,1770520247469,-765.89,0.00043699,120]
[404769213,1770520247479,-659.81,0.00043699,45]
[404769214,1770520247488,-123103.44549684,0.000437,2]
[404769215,1770520247497,-11689.78,0.000437,14]
[404769216,1770520247507,-50646.0,0.00043704,30]
[404769217,1770520247516,-2000.0,0.0004373,120]
[404769218,1770520247526,-2000.0,0.0004373,120]
[404769219,1770520247537,-2000.0,0.0004373,120]
[404769220,1770520247547,-2000.0,0.0004373,120]
[404769221,1770520247556,-2000.0,0.0004373,120]
[404769222,1770520247566,-200.0,0.00043793,3]
[404769223,1770520247575,-151.0,0.000438,120]
[404769224,1770520247585,-153.0,0.000438,120]
[404769225,1770520247594,-528.2785684,0.00043835,120]
[404769226,1770520247603,-500.0,0.00043835,120]
[404769227,1770520247613,-500.0,0.00043835,120]
[404769228,1770520247622,-500.0,0.00043835,120]
[404769229,1770520247631,-515.21784225,0.00043835,120]
[404769230,1770520247647,-500.0,0.00043835,120]
[404769231,1770520247664,-500.0,0.00043835,120]
[404769232,1770520247673,-500.0,0.00043835,120]
[404769233,1770520247682,-500.0,0.00043835,120]
[404769234,1770520247692,-500.0,0.00043835,120]
[404769235,1770520247702,-500.0,0.00043835,120]
[404769236,1770520247711,-13793.96425087,0.00043835,15]
[404769237,1770520247720,-20000.0,0.00043835,120]
[404769238,1770520247730,-500.0,0.00043835,120]
[404769239,1770520247739,-500.0,0.00043835,120]
[404769240,1770520247749,-500.0,0.00043835,120]
[404769241,1770520247758,-500.0,0.00043835,120]
[404769242,1770520247768,-500.0,0.00043835,120]
[404769243,1770520247777,-500.0,0.00043835,120]
[404769244,1770520247787,-500.0,0.00043835,120]
[404769245,1770520247796,-500.0,0.00043835,120]
[404769246,1770520247806,-500.0,0.00043835,120]
[404769247,1770520247815,-500.0,0.00043835,120]
[404769248,1770520247824,-500.0,0.00043835,120]
[404769249,1770520247834,-603.69467804,0.00043835,120]
[404769250,1770520247843,-500.0,0.00043835,2]
[404769251,1770520247855,-500.0,0.00043835,2]
[404769252,1770520247864,-500.0,0.00043835,2]
[404769253,1770520247874,-500.0,0.00043835,2]
[404769254,1770520247883,-500.0,0.00043835,2]
[404769255,1770520247892,-500.0,0.00043835,2]
[404769256,1770520247902,-500.0,0.00043835,2]
[404769257,1770520247911,-500.0,0.00043835,2]
[404769258,1770520247920,-500.0,0.00043835,2]
[404769259,1770520247929,-500.0,0.00043835,2]
[404769260,1770520247938,-500.0,0.00043835,2]
[404769261,1770520247948,-500.0,0.00043835,2]
[404769262,1770520247957,-500.0,0.00043835,2]
[404769263,1770520247967,-500.0,0.00043835,2]
[404769264,1770520247976,-398.59085793,0.00043835,2]
[404769265,1770520247986,-500.0,0.00043835,120]
[404769266,1770520247995,-500.0,0.00043835,120]
[404769267,1770520248005,-500.0,0.00043835,120]
[404769268,1770520248014,-500.0,0.00043835,120]
[404769269,1770520248024,-529.4937605,0.00043835,120]
[404769270,1770520248033,-151.24068403,0.00043835,2]
[404769271,1770520248043,-1999.0,0.00043835,120]
[404769272,1770520248052,-500.0,0.00043835,120]
[404769273,1770520248063,-500.0,0.00043835,120]
[404769274,1770520248072,-503.92733061,0.00043835,120]
[404769275,1770520248082,-316.48489441,0.00043835,120]
[404769276,1770520248092,-1000.0,0.00043836,30]
[404769277,1770520248101,-151.0,0.00043836,120]
[404769278,1770520248111,-151.0,0.00043836,120]
[404769279,1770520248120,-151.0,0.00043836,120]
[404769280,1770520248131,-151.0,0.00043836,120]
[404769281,1770520248141,-151.0,0.00043836,30]
[404769282,1770520248153,-151.0,0.00043836,14]
[404769283,1770520248163,-151.0,0.00043836,14]
[404769284,1770520248173,-265.80043,0.00043836,120]
[404769285,1770520248183,-151.0,0.00043836,120]
[404769286,1770520248194,-151.0,0.00043836,120]
[404769287,1770520248203,-260.330749,0.00043836,120]
[404769288,1770520248214,-290.414734,0.00043836,120]
[404769289,1770520248223,-290.414734,0.00043836,120]
[404769290,1770520248232,-290.414734,0.00043836,120]
[404769291,1770520248242,-290.414734,0.00043836,120]
[404769292,1770520248252,-151.0,0.00043836,7]
[404769293,1770520248262,-151.0,0.00043836,7]
[404769294,1770520248271,-151.0,0.00043836,7]
[404769295,1770520248280,-151.0,0.00043836,7]
[404769296,1770520248290,-151.0,0.00043836,120]
[404769297,1770520248300,-151.0,0.00043836,120]
[404769298,1770520248310,-151.0,0.00043836,120]
[404769299,1770520248320,-151.0,0.00043836,120]
[404769300,1770520248329,-151.0,0.00043836,120]
[404769301,1770520248339,-294.873667,0.00043836,120]
[404769302,1770520248349,-917.021957,0.00043836,120]
[404769303,1770520248359,-917.021957,0.00043836,120]
[404769304,1770520248368,-917.021957,0.00043836,120]
[404769305,1770520248378,-917.021957,0.00043836,120]
[404769306,1770520248387,-1000.0,0.00043938,120]
[404769307,1770520248397,-200.0,0.0004394,2]
[404769308,1770520248407,-4657.83024449,0.00043954,15]
[404769309,1770520248417,-10732.73906839,0.00043954,15]
[404769310,1770520248427,-2000.0,0.0004396,3]
[404769311,1770520248437,-1000.0,0.00043999,120]
[404769312,1770520248446,-160.0,0.00044,120]
[404769313,1770520248456,-2000.0,0.00044,7]
[404769314,1770520248466,-4708.0,0.00044017,2]
[404769315,1770520248476,-4708.0,0.00044023,120]
[404769316,1770520248486,-13600.0,0.00044037,7]
[404769317,1770520248496,-358.39522769,0.00044038,2]
[404769318,1770520248506,-10000.0,0.00044038,2]
[404769319,1770520248515,-191.737814,0.00044054,120]
[404769320,1770520248525,-230.910915,0.00044054,120]
[404769321,1770520248535,-151.0,0.00044054,120]
[404769322,1770520248544,-151.0,0.00044054,120]
[404769323,1770520248555,-151.0,0.00044054,120]
[404769324,1770520248564,-151.0,0.00044054,120]
[404769325,1770520248574,-151.0,0.00044054,120]
[404769326,1770520248584,-151.0,0.00044054,120]
[404769327,1770520248594,-151.0,0.00044054,120]
[404769328,1770520248603,-151.0,0.00044054,120]
[404769329,1770520248613,-151.0,0.00044054,120]
[404769330,1770520248623,-151.0,0.00044054,120]
[404769331,1770520248633,-151.0,0.00044054,120]
[404769332,1770520248642,-151.0,0.00044054,120]
[404769333,1770520248652,-151.0,0.00044054,120]
[404769334,1770520248662,-151.0,0.00044054,120]
[404769335,1770520248671,-201.5387663,0.00044054,7]
[404769336,1770520248681,-151.0,0.00044054,120]
[404769337,1770520248691,-151.0,0.00044054,120]
[404769338,1770520248701,-151.0,0.00044054,120]
[404769339,1770520248711,-5400.0,0.00044054,7]
[404769340,1770520248720,-5599.8,0.00044054,7]
[404769341,1770520248730,-5806.9926,0.00044054,7]
[404769342,1770520248746,-6021.8513262,0.00044054,7]
[404769343,1770520248767,-6244.65982527,0.00044054,7]
[404769344,1770520248777,-201.95321856,0.00044054,7]
[404769345,1770520248786,-6475.7122388,0.00044054,7]
[404769346,1770520248797,-6715.31359164,0.00044054,7]
[404769347,1770520248806,-6963.78019453,0.00044054,7]
[404769348,1770520248816,-7221.44006173,0.00044054,7]
[404769349,1770520248826,-7488.63334401,0.00044054,7]
[404769350,1770520248837,-7765.71277774,0.00044054,7]
[404769351,1770520248849,-8053.04415052,0.00044054,7]
[404769352,1770520248861,-8351.00678409,0.00044054,7]
[404769353,1770520248872,-8659.9940351,0.00044054,7]
[404769354,1770520248881,-8980.4138144,0.00044054,7]
[404769355,1770520248891,-9312.68912553,0.00044054,7]
[404769356,1770520248901,-9657.25862317,0.00044054,7]
[404769357,1770520248911,-9610.8081057,0.00044054,7]
[404769358,1770520248921,-165.012487,0.00044054,28]
[404769359,1770520248932,-165.012487,0.00044054,28]
[404769360,1770520248944,-165.012487,0.00044054,28]
[404769361,1770520248955,-165.012487,0.00044054,28]
[404769362,1770520248964,-165.535671,0.00044054,120]
[404769363,1770520248975,-151.0,0.00044054,120]
[404769364,1770520248985,-151.0,0.00044054,120]
[404769365,1770520248995,-151.0,0.00044054,120]
[404769366,1770520249006,-169.269929,0.00044054,120]
[404769367,1770520249016,-246.324833,0.00044054,120]
[404769368,1770520249027,-169.269929,0.00044054,120]
[404769369,1770520249037,-151.0,0.00044054,120]
[404769370,1770520249047,-673.287626,0.00044054,120]
[404769371,1770520249058,-267.09956,0.00044054,120]
[404769372,1770520249068,-169.269929,0.00044054,120]
[404769373,1770520249078,-673.287626,0.00044054,120]
[404769374,1770520249088,-169.269929,0.00044054,120]
[404769375,1770520249098,-151.0,0.00044054,120]
[404769376,1770520249108,-151.0,0.00044054,120]
[404769377,1770520249119,-673.287626,0.00044054,120]
[404769378,1770520249129,-151.0,0.00044054,120]
[404769379,1770520249139,-151.0,0.00044054,120]
[404769380,1770520249152,-673.287626,0.00044054,120]
[404769381,1770520249161,-151.0,0.00044054,120]
[404769382,1770520249171,-151.0,0.00044054,120]
[404769383,1770520249182,-151.0,0.00044054,120]
[404769384,1770520249194,-253.278217,0.00044054,120]
[404769385,1770520249204,-253.278217,0.00044054,120]
[404769386,1770520249213,-151.0,0.00044054,120]
[404769387,1770520249224,-151.0,0.00044054,120]
[404769388,1770520249234,-151.0,0.00044054,120]
[404769389,1770520249244,-253.278217,0.00044054,120]
[404769390,1770520249253,-151.0,0.00044054,31]
[404769391,1770520249263,-151.0,0.00044054,120]
[404769392,1770520249272,-151.0,0.00044054,120]
[404769393,1770520249282,-151.0,0.00044054,120]
[404769394,1770520249291,-253.278217,0.00044054,120]
[404769395,1770520249301,-151.0,0.00044054,31]
[404769396,1770520249311,-151.0,0.00044054,120]
[404769397,1770520249320,-151.0,0.00044054,120]
[404769398,1770520249329,-151.0,0.00044054,120]
[404769399,1770520249339,-151.0,0.00044054,31]
[404769400,1770520249349,-151.0,0.00044054,120]
[404769401,1770520249358,-151.0,0.00044054,120]
[404769402,1770520249368,-151.0,0.00044054,31]
[404769403,1770520249378,-151.0,0.00044054,120]
[404769404,1770520249387,-151.0,0.00044054,120]
[404769405,1770520249397,-151.0,0.00044054,120]
[404769406,1770520249406,-151.0,0.00044054,120]
[404769407,1770520249417,-151.0,0.00044054,120]
[404769408,1770520249428,-500.0,0.00044054,7]
[404769409,1770520249438,-500.0,0.00044054,7]
[404769410,1770520249451,-244.81329613,0.00044054,7]
[404769411,1770520249462,-151.0,0.00044054,7]
[404769412,1770520249473,-164.03981452,0.00044054,7]
[404769413,1770520249483,-277.35679052,0.00044054,7]
[404769414,1770520249495,-287.61899177,0.00044054,7]
[404769415,1770520249505,-250.0,0.00044054,7]
[404769416,1770520249515,-298.26089446,0.00044054,7]
[404769417,1770520249524,-280.229488,0.00044054,7]
[404769418,1770520249533,-309.29654756,0.00044054,7]
[404769419,1770520249543,-250.0,0.00044054,7]
[404769420,1770520249553,-320.74051982,0.00044054,7]
[404769421,1770520249562,-250.0,0.00044054,7]
[404769422,1770520249571,-332.60791905,0.00044054,7]
[404769423,1770520249581,-250.0,0.00044054,7]
[404769424,1770520249591,-344.91441206,0.00044054,7]
[404769425,1770520249600,-250.0,0.00044054,7]
[404769426,1770520249609,-357.6762453,0.00044054,7]
[404769427,1770520249619,-250.0,0.00044054,7]
[404769428,1770520249628,-370.91026638,0.00044054,7]
[404769429,1770520249638,-250.0,0.00044054,7]